bitfinex-derivatives/quotes_ETHF0:USTF0_20260128
["timestamp","ask_amount","ask_price","bid_price","bid_amount"]
[1769587456894,3.34429987,3009.0,3007.2,2.88279416]
[1769587457700,3.34688185,3009.0,3007.2,2.88279416]
[1769587457902,3.0305027,3009.0,3007.2,2.88279416]
[1769587459392,0.00258198,3009.0,3007.5,2.88279416]
[1769587460996,0.00258198,3009.0,3007.5,3.04928416]
[1769587461500,0.00258198,3009.0,3007.6,2.88279416]
[1769587461696,0.00258198,3009.0,3007.6,3.04927416]
[1769587463201,0.00258198,3009.0,3007.8,2.88279416]
[1769587463500,0.00258198,3009.0,3008.0,2.88279416]
[1769587464803,3.15651274,3009.6,3008.2,3.32146571]
[1769587465698,3.16065283,3009.6,3008.2,3.32146571]
[1769587465903,3.32702283,3009.6,3008.2,3.32146571]
[1769587466290,0.16638,3009.5,3008.2,3.32146571]
[1769587466502,3.35335691,3009.2,3008.2,3.32146571]
[1769587466697,3.35335691,3008.9,3007.9,3.15037207]
[1769587468401,0.16641,3009.0,3007.9,3.15037207]
[1769587469004,3.35335691,3009.2,3007.9,3.15037207]
[1769587471203,3.35335691,3009.4,3007.9,3.15037207]
[1769587473703,3.51974691,3009.4,3007.9,3.15037207]
[1769587474208,3.51974691,3009.4,3008.0,3.15037207]
[1769587474908,3.35335691,3009.3,3008.0,3.15037207]
[1769587476205,0.16639,3009.4,3008.0,6.14268121]
[1769587476505,0.16639,3009.4,3008.1,3.15037207]
[1769587477110,0.16639,3009.4,3008.1,6.14268121]
[1769587477408,3.51974691,3009.4,3008.2,3.15037207]
[1769587478004,3.51974691,3009.4,3008.1,2.99230914]
[1769587478200,3.51974691,3009.4,3008.2,3.15037207]
[1769587479206,3.35335691,3009.2,3008.1,2.99230914]
[1769587479510,3.35335691,3009.2,3008.0,2.99230914]
[1769587479707,3.35335691,3009.2,3007.9,6.14268121]
[1769587480214,3.35335691,3009.2,3008.0,2.99230914]
[1769587481012,3.35335691,3009.2,3007.9,2.99230914]
[1769587481202,3.51978691,3008.6,3007.4,2.65920914]
[1769587481504,3.51978691,3008.6,3007.1,3.99829052]
[1769587481712,3.51978691,3008.6,3007.1,3.15037207]
[1769587481910,3.35335691,3008.4,3007.1,3.15037207]
[1769587495119,3.50249826,3008.2,3007.1,3.15037207]
[1769587501423,3.50249826,3008.0,3006.9,3.36795684]
[1769587501718,3.66895826,3008.0,3006.9,3.36795684]
[1769587501921,3.66895826,3008.0,3006.9,0.00245314]
[1769587502623,3.66895826,3008.0,3006.9,3.36795684]
[1769587505322,3.50249826,3007.8,3006.9,3.36795684]
[1769587507114,3.50249826,3007.8,3006.9,0.00245314]
[1769587511724,3.50249826,3008.4,3006.9,6.3588164]
[1769587511926,3.50249826,3008.4,3007.0,3.3655037]
[1769587513027,3.50249826,3008.4,3007.1,3.3655037]
[1769587514525,3.66893826,3008.4,3006.9,2.9933127]
[1769587514727,3.50249826,3008.1,3006.9,0.00245314]
[1769587515126,3.66895826,3008.1,3006.9,0.00245314]
[1769587515327,3.50249826,3007.9,3006.9,0.00245314]
[1769587516124,3.50249826,3007.9,3006.9,3.36795684]
[1769587517733,3.50249826,3007.9,3006.9,0.00245314]
[1769587518722,8.17813828,3008.8,3006.3,2.99085956]
[1769587518723,3.50249826,3007.4,3006.3,2.99085956]
[1769587518926,3.50249826,3007.4,3006.1,6.88385956]
[1769587519134,3.50249826,3007.4,3006.1,2.99085956]
[1769587519731,3.50631536,3007.4,3006.1,6.3601703]
[1769587520237,3.50631536,3007.4,3006.1,3.36931074]
[1769587522440,3.67280536,3007.4,3006.1,3.36931074]
[1769587525140,3.50631536,3007.4,3006.1,3.36931074]
[1769587529445,3.47612926,3007.2,3006.1,3.36931074]
[1769587533552,3.47612926,3007.2,3006.6,1.46339119]
[1769587534849,3.47612926,3007.2,3006.4,1.46339119]
[1769587536257,3.47612926,3007.2,3006.4,4.90060453]
[1769587537559,3.47612926,3007.2,3006.4,3.43721334]
[1769587539555,5.53,3007.1,3006.4,3.43721334]
[1769587539758,3.47612926,3007.1,3006.1,2.9946666]
[1769587539968,3.47612926,3007.1,3006.1,0.00380704]
[1769587540460,3.47612926,3006.9,3006.1,0.00380704]
[1769587541660,3.47612926,3006.7,3006.1,0.00380704]
[1769587542757,3.47612926,3007.0,3006.1,3.44102038]
[1769587542959,2.81338796,3006.9,3006.1,3.44102038]
[1769587543161,2.81338796,3006.8,3006.1,3.44102038]
[1769587543362,3.47612926,3007.0,3006.1,3.44102038]
[1769587543557,2.81432175,3006.9,3006.1,3.44102038]
[1769587543758,3.47612926,3007.2,3006.1,3.44102038]
[1769587543960,2.81439336,3007.1,3006.1,3.44102038]
[1769587544265,2.81439336,3007.0,3006.1,3.44102038]
[1769587544566,2.81439336,3006.9,3006.1,3.22624955]
[1769587544863,3.47612926,3007.2,3006.1,3.22624955]
[1769587545063,2.80513218,3007.1,3006.1,3.22624955]
[1769587545264,2.80513218,3007.0,3006.1,3.22624955]
[1769587545465,2.80513218,3006.9,3006.1,3.22865142]
[1769587545668,3.47612926,3007.1,3006.1,3.22865142]
[1769587545964,2.8031749,3007.0,3006.1,3.22865142]
[1769587546162,2.8031749,3006.9,3006.1,3.22865142]
[1769587546364,3.47612926,3007.1,3006.1,3.22865142]
[1769587546666,2.80411536,3007.0,3006.1,3.22865142]
[1769587546866,2.80411536,3006.9,3006.1,3.22865142]
[1769587547069,3.47612926,3007.1,3006.1,3.22865142]
[1769587547258,2.80411711,3007.0,3006.1,3.22865142]
[1769587547563,2.80411711,3006.9,3006.1,3.22865142]
[1769587547867,2.80411711,3006.8,3006.1,3.22865142]
[1769587548066,3.47612926,3007.1,3006.1,3.22865142]
[1769587548367,2.80540261,3007.0,3006.1,3.22865142]
[1769587548567,2.80540261,3006.9,3006.1,3.22865142]
[1769587548764,2.80540261,3006.8,3006.1,3.22865142]
[1769587548963,3.47612926,3007.0,3006.1,3.22865142]
[1769587549169,2.80597659,3006.9,3006.1,3.22865142]
[1769587549475,3.47612926,3007.0,3006.1,3.22865142]
[1769587559271,3.47612926,3007.0,3006.1,2.92838369]
[1769587559665,3.47612926,3007.0,3006.2,1.46373563]
[1769587560375,3.6096215,3006.5,3005.9,2.99523194]
[1769587560674,3.6096215,3006.3,3005.4,3.99829052]
[1769587560874,2.79998316,3006.2,3005.2,5.46202615]
[1769587561079,3.6096215,3006.1,3005.2,3.99829052]
[1769587561282,3.6096215,3006.1,3005.1,3.99829052]
[1769587561574,3.6096215,3005.9,3005.1,0.00247362]
[1769587562484,3.6096215,3005.7,3005.1,0.00247362]
[1769587563883,3.6096215,3005.7,3004.5,3.39892157]
[1769587564079,2.87876659,3005.6,3004.5,3.39892157]
[1769587564373,0.3139136,3005.8,3004.5,3.39892157]
[1769587564374,3.6096215,3005.5,3004.5,3.39892157]
[1769587564779,3.6096215,3005.5,3004.5,3.4027932]
[1769587567585,3.6096215,3005.5,3004.5,0.00387163]
[1769587568470,3.6096215,3005.5,3004.5,3.4027932]
[1769587570175,3.6096215,3005.5,3004.6,3.39892157]
[1769587571587,3.6096215,3005.8,3004.6,3.39892157]
[1769587571779,3.91121747,3005.8,3004.6,3.39892157]
[1769587573983,3.91121747,3005.8,3004.5,0.00387163]
[1769587574386,3.6096215,3005.6,3004.5,0.00387163]
[1769587574693,3.6096215,3005.3,3004.5,0.00387163]
[1769587581589,0.16662,3005.4,3004.6,1.46491694]
[1769587581787,0.16662,3005.4,3004.7,3.39892157]
[1769587582686,3.6096215,3005.6,3004.7,3.39892157]
[1769587584698,3.02714911,3005.9,3004.7,3.39892157]
[1769587584998,2.86055911,3005.7,3004.7,3.39892157]
[1769587585996,3.02716911,3005.7,3004.5,2.87923657]
[1769587586294,2.82099454,3005.5,3004.5,0.00387163]
[1769587586890,2.98761454,3005.5,3004.5,0.00387163]
[1769587587187,2.86383346,3005.4,3004.5,0.00387163]
[1769587587389,2.82099454,3005.3,3004.5,0.00387163]
[1769587588393,2.82099454,3005.1,3004.5,0.00096502]
[1769587588597,2.82099454,3005.1,3004.0,2.87536494]
[1769587589199,2.82099454,3004.9,3004.0,2.87536494]
[1769587589600,2.82372584,3004.9,3004.0,2.87807198]
[1769587591601,2.82099454,3004.7,3004.0,0.00270704]
[1769587592496,2.82099454,3004.5,3004.0,0.00270704]
[1769587592802,2.82099454,3004.5,3003.5,2.87536494]
[1769587593693,2.82099454,3004.5,3003.5,2.877926]
[1769587598200,0.0027313,3004.9,3004.1,2.87536494]
[1769587598594,0.16662,3005.2,3004.1,2.87536494]
[1769587599199,2.98761454,3005.2,3004.1,2.87536494]
[1769587599699,2.98761454,3005.2,3003.9,3.99829052]
[1769587599700,2.82099454,3005.0,3003.9,2.87536494]
[1769587600300,0.0026996,3005.2,3004.1,2.87536494]
[1769587601705,0.0026996,3005.2,3004.5,2.87536494]
[1769587601899,2.82099454,3005.9,3004.9,2.87536494]
[1769587602801,2.99074621,3005.9,3004.9,2.87536494]
[1769587603007,2.82099454,3005.7,3004.5,2.87536494]
[1769587604101,2.98758454,3005.7,3004.5,2.87536494]
[1769587604296,0.1666,3005.6,3004.5,2.87536494]
[1769587604502,2.82099454,3005.3,3004.5,2.87536494]
[1769587606306,0.1666,3005.6,3004.5,2.87536494]
[1769587606307,2.98759454,3005.6,3004.5,2.87536494]
[1769587606807,2.82099454,3005.6,3004.5,2.87536494]
[1769587607402,2.82099454,3005.8,3004.5,2.87536494]
[1769587607604,0.00317167,3005.9,3004.7,2.87536494]
[1769587608609,2.82099454,3006.4,3005.1,2.87536494]
[1769587609600,2.82499309,3006.4,3005.1,2.87536494]
[1769587610109,2.82099454,3006.2,3004.8,6.87365546]
[1769587610404,2.82099454,3006.2,3004.9,2.87536494]
[1769587610904,2.82099454,3006.0,3004.6,6.76836494]
[1769587611106,2.82099454,3005.8,3004.6,2.87536494]
[1769587612712,2.82099454,3006.1,3004.6,2.87536494]
[1769587612911,2.82099454,3005.9,3004.6,2.87536494]
[1769587614212,2.82099454,3005.7,3004.6,2.87536494]
[1769587618112,2.82099454,3005.7,3004.3,6.08664339]
[1769587618411,2.82099454,3005.7,3004.4,2.19364339]
[1769587619308,2.32120038,3005.5,3004.4,2.19364339]
[1769587627815,2.32120038,3005.7,3004.4,2.19364339]
[1769587628017,5.14759625,3005.6,3004.4,2.19364339]
[1769587628215,2.32120038,3005.6,3004.4,2.19364339]
[1769587628416,2.81805334,3005.5,3004.4,2.19364339]
[1769587628616,2.32120038,3005.6,3004.4,2.19364339]
[1769587628816,2.81805291,3005.5,3004.4,2.19364339]
[1769587629019,2.32120038,3005.6,3004.4,2.19364339]
[1769587629210,2.8180609,3005.5,3004.4,2.19364339]
[1769587629504,2.32120038,3005.6,3004.4,2.19364339]
[1769587629711,2.81819509,3005.5,3004.4,2.19364339]
[1769587630018,2.32120038,3005.8,3004.4,2.19364339]
[1769587630216,2.81883768,3005.7,3004.7,2.19364339]
[1769587630422,2.32120038,3006.1,3004.8,2.19364339]
[1769587630620,2.32120038,3006.1,3005.0,2.19364339]
[1769587631513,2.32120038,3005.9,3004.8,2.19364339]
[1769587631717,2.32120038,3005.7,3004.8,2.19364339]
[1769587636222,2.32120038,3005.9,3005.0,2.19364339]
[1769587636419,2.32120038,3005.9,3005.1,1.46521862]
[1769587636720,2.32120038,3005.9,3005.1,3.65886201]
[1769587637315,5.536,3006.0,3005.3,1.46521862]
[1769587637623,7.85720038,3006.0,3005.3,2.19364339]
[1769587637822,2.32120038,3005.9,3005.1,3.65886201]
[1769587638121,2.32120038,3005.9,3005.1,2.19364339]
[1769587640026,2.32120038,3005.8,3005.1,2.19364339]
[1769587640221,2.32120038,3005.8,3004.9,2.19364339]
[1769587640523,2.32120038,3005.7,3004.9,2.19364339]
[1769587640824,1.46521862,3005.6,3004.6,6.19193391]
[1769587641126,2.32120038,3005.5,3004.5,3.99829052]
[1769587641325,2.32120038,3005.3,3004.5,3.99829052]
[1769587641514,2.32120038,3005.3,3004.1,3.99829052]
[1769587641515,2.32120038,3005.1,3004.1,3.99829052]
[1769587641719,2.32120038,3004.9,3004.0,2.19364339]
[1769587641927,5.15453744,3004.8,3004.0,2.19364339]
[1769587642226,2.32120038,3004.8,3004.0,2.19364339]
[1769587645725,7.32525809,3005.1,3004.0,2.19364339]
[1769587645930,4.64987955,3005.0,3004.0,2.19364339]
[1769587646131,1.78925809,3005.0,3004.0,2.19364339]
[1769587646733,40.8,3005.2,3004.0,2.19364339]
[1769587646930,1.78925809,3005.3,3004.0,2.19364339]
[1769587647131,2.86020275,3005.2,3004.0,2.19364339]
[1769587647427,1.78925809,3005.3,3004.0,2.19364339]
[1769587647929,1.78925809,3005.2,3004.0,2.19364339]
[1769587648122,1.78925809,3005.0,3004.0,2.19364339]
[1769587649945,1.78925809,3005.0,3003.6,1.83748805]
[1769587651337,1.78925809,3004.9,3003.6,1.83748805]
[1769587652036,1.78925809,3005.1,3003.6,1.83748805]
[1769587652232,42.58925809,3005.4,3003.8,1.83748805]
[1769587652441,1.95584809,3005.7,3004.1,1.83748805]
[1769587652631,1.78925809,3005.5,3004.1,1.83748805]
[1769587652940,42.58925809,3005.5,3004.1,1.83748805]
[1769587653438,1.78925809,3005.5,3004.1,1.83748805]
[1769587653833,42.58925809,3005.7,3004.2,1.83748805]
[1769587654338,1.78925809,3005.7,3004.2,1.83748805]
[1769587654743,5.536,3005.9,3004.3,1.83748805]
[1769587654932,40.8,3005.8,3004.4,1.83748805]
[1769587655233,40.8,3005.8,3004.5,1.83748805]
[1769587655432,1.78925809,3005.8,3004.5,1.83748805]
[1769587656439,5.536,3006.3,3004.6,1.83748805]
[1769587656639,5.536,3006.3,3004.8,1.83748805]
[1769587656640,2.86620335,3006.2,3004.8,1.83748805]
[1769587656837,7.32525809,3006.3,3005.0,1.83748805]
[1769587657038,40.8,3006.2,3005.0,1.83748805]
[1769587657443,7.32525809,3006.3,3005.0,1.83748805]
[1769587657931,0.00399855,3006.4,3005.0,1.83748805]
[1769587658137,0.00399855,3006.4,3005.1,1.83748805]
[1769587659140,1.79325664,3006.4,3005.1,1.83748805]
[1769587662243,1.78925809,3006.3,3004.7,1.83748805]
[1769587662441,1.78925809,3006.2,3004.7,1.83748805]
[1769587663541,1.95581809,3006.2,3004.7,1.83748805]
[1769587664739,1.78925809,3006.0,3004.7,1.83748805]
[1769587664947,1.78925809,3005.9,3004.4,1.83748805]
[1769587665344,1.78925809,3005.7,3004.1,1.83748805]
[1769587669044,1.78925809,3005.5,3004.1,1.83748805]
[1769587669447,1.78925809,3005.3,3004.1,1.83748805]
[1769587670838,1.95586809,3005.3,3003.7,5.83577857]
[1769587671045,1.78925809,3005.0,3003.6,1.83748805]
[1769587679746,7.02274829,3004.9,3003.6,1.83748805]
[1769587680252,1.48674829,3004.8,3003.6,1.83748805]
[1769587682053,1.54470111,3005.0,3003.6,1.83748805]
[1769587682554,4.9864912,3006.0,3003.6,1.83748805]
[1769587682555,7.02274829,3005.5,3003.8,1.46308592]
[1769587682748,1.48674829,3005.5,3003.8,1.46308592]
[1769587683644,1.48674829,3005.3,3003.8,1.46308592]
[1769587686255,1.48674829,3005.1,3003.8,1.46308592]
[1769587690059,7.02274829,3005.0,3003.8,1.46308592]
[1769587690257,7.02274829,3005.0,3003.9,1.46308592]
[1769587690958,1.48674829,3004.9,3003.9,1.46308592]
[1769587691461,1.48674829,3005.3,3004.0,1.46308592]
[1769587692462,1.48674829,3005.1,3004.0,1.46308592]
[1769587693459,1.65334829,3005.4,3004.1,1.46308592]
[1769587693660,4.34246423,3005.3,3004.1,1.46308592]
[1769587693959,1.48674829,3005.5,3004.3,1.46308592]
[1769587694158,2.85589442,3005.4,3004.3,1.46308592]
[1769587694361,1.48674829,3005.5,3004.3,1.46308592]
[1769587694563,4.34371566,3005.4,3004.4,1.46308592]
[1769587694760,1.48674829,3005.4,3004.4,1.46308592]
[1769587699463,1.54469069,3005.6,3004.5,1.46308592]
[1769587699775,1.48674829,3005.5,3004.5,1.46308592]
[1769587703168,0.0579424,3005.6,3004.5,1.46308592]
[1769587703473,1.48674829,3005.8,3004.6,1.46308592]
[1769587703664,1.48674829,3005.6,3004.6,1.46308592]
[1769587705672,1.48674829,3005.6,3004.5,1.22813211]
[1769587709369,1.48674829,3005.6,3004.6,1.22813211]
[1769587710166,1.48674829,3005.6,3004.4,3.99829052]
[1769587710374,1.30233702,3005.4,3004.4,3.99829052]
[1769587710872,1.30233702,3005.4,3004.4,5.22642263]
[1769587712373,5.76051622,3005.8,3004.3,3.893]
[1769587712374,1.30233702,3005.2,3004.3,3.893]
[1769587712574,1.30233702,3005.2,3004.2,3.99829052]
[1769587712770,1.30233702,3005.2,3004.2,5.22642263]
[1769587713667,1.30233702,3005.2,3004.2,1.22813211]
[1769587714267,1.30233702,3005.2,3004.3,1.22813211]
[1769587715075,1.30233702,3005.5,3004.3,1.22813211]
[1769587715275,2.86493687,3005.4,3004.3,1.22813211]
[1769587715477,2.86493687,3005.3,3004.3,1.22813211]
[1769587715675,1.30233702,3005.5,3004.4,1.22813211]
[1769587715974,2.86503582,3005.4,3004.4,1.22813211]
[1769587716176,1.30233702,3005.5,3004.4,1.22813211]
[1769587716177,2.86503582,3005.3,3004.4,1.22813211]
[1769587716469,5.59393622,3005.8,3004.4,1.22813211]
[1769587716668,2.8655996,3005.7,3004.7,1.22813211]
[1769587716874,2.8655996,3005.7,3004.6,5.46362892]
[1769587716875,0.05793622,3005.8,3004.8,5.22642263]
[1769587717071,1.30233702,3006.0,3004.9,1.22813211]
[1769587717272,2.87149389,3005.9,3005.0,1.22813211]
[1769587717478,1.30233702,3006.0,3005.0,1.22813211]
[1769587720477,1.30233702,3005.9,3005.0,1.22813211]
[1769587721280,1.30233702,3005.9,3004.8,5.22642263]
[1769587721474,1.30233702,3005.9,3004.9,1.22813211]
[1769587725872,1.30233702,3005.9,3004.8,3.99829052]
[1769587726077,1.30233702,3005.9,3004.7,5.22642263]
[1769587726277,1.30233702,3005.9,3004.8,5.22642263]
[1769587726679,1.30233702,3005.9,3004.8,1.22813211]
[1769587726979,1.30233702,3005.9,3004.7,3.99829052]
[1769587727379,1.30233702,3005.9,3004.7,5.22642263]
[1769587727580,1.30233702,3005.9,3004.8,1.22813211]
[1769587729980,1.30233702,3005.7,3004.8,1.22813211]
[1769587731389,1.30233702,3005.7,3004.6,3.99829052]
[1769587731589,1.30233702,3005.7,3004.4,3.99829052]
[1769587731590,1.30233702,3005.5,3004.4,3.99829052]
[1769587732087,1.30233702,3005.5,3004.4,1.22813211]
[1769587741201,6.46573695,3005.7,3004.5,1.16433814]
[1769587741501,2.8743482,3005.6,3004.5,1.16433814]
[1769587741702,6.46573695,3005.7,3004.5,1.16433814]
[1769587741895,2.87517057,3005.6,3004.5,1.16433814]
[1769587742096,6.46573695,3005.7,3004.5,1.16433814]
[1769587742298,2.8752084,3005.6,3004.5,1.16433814]
[1769587742500,1.17173695,3005.6,3004.5,1.16433814]
[1769587744007,1.17173695,3005.4,3004.5,1.16433814]
[1769587744511,1.17173695,3005.4,3004.3,5.16262866]
[1769587744910,1.17173695,3005.4,3004.4,1.16433814]
[1769587746112,1.17173695,3005.7,3004.9,1.16433814]
[1769587746413,1.17173695,3005.5,3004.7,1.16433814]
[1769587747609,5.536,3005.9,3004.7,1.16433814]
[1769587747811,1.17173695,3005.7,3004.7,1.16433814]
[1769587747999,2.9145723,3005.6,3004.7,1.16433814]
[1769587748311,1.17173695,3005.5,3004.7,1.16433814]
[1769587751408,1.17173695,3005.4,3004.7,1.16433814]
[1769587756718,1.17173695,3005.8,3004.7,1.16433814]
[1769587756912,1.17173695,3005.6,3004.7,1.16433814]
[1769587757215,1.17173695,3005.8,3005.1,1.16433814]
[1769587757406,2.91865601,3005.7,3005.1,1.16433814]
[1769587757607,2.91865601,3005.6,3005.1,1.16433814]
[1769587757813,1.17173695,3005.9,3005.1,1.16433814]
[1769587758012,2.91867985,3005.8,3005.1,1.16433814]
[1769587758208,2.91867985,3005.7,3005.1,1.16433814]
[1769587758409,2.91867985,3005.6,3005.1,1.16433814]
[1769587758610,1.17173695,3005.9,3005.1,1.16433814]
[1769587758805,2.91898884,3005.8,3005.2,2.62971053]
[1769587759010,2.91898884,3005.7,3005.3,1.16433814]
[1769587759210,1.17173695,3006.1,3005.3,1.16433814]
[1769587759410,2.91896187,3006.0,3005.3,1.16433814]
[1769587759713,2.91896187,3005.9,3005.3,1.16433814]
[1769587760013,1.17173695,3006.1,3005.3,1.16433814]
[1769587760215,2.91895989,3006.0,3005.3,1.16433814]
[1769587760417,2.91895989,3005.9,3005.3,1.16433814]
[1769587760716,1.17173695,3006.1,3005.3,1.16433814]
[1769587760917,2.9185887,3006.0,3005.3,1.16433814]
[1769587761118,2.9185887,3005.9,3005.3,1.16433814]
[1769587761313,4.3834928,3005.8,3004.9,5.16262866]
[1769587761620,1.17173695,3005.6,3004.9,1.16433814]
[1769587764925,1.17173695,3005.6,3004.7,0.99791732]
[1769587765312,1.17173695,3005.6,3004.4,2.53211552]
[1769587765620,0.99473628,3005.4,3004.5,5.06244914]
[1769587765822,0.99473628,3005.4,3004.6,1.06674313]
[1769587768322,0.99473628,3005.4,3004.7,1.06674313]
[1769587768519,0.99473628,3005.7,3004.9,1.06674313]
[1769587768719,2.92627769,3005.6,3004.9,1.06674313]
[1769587768921,0.99473628,3005.7,3004.9,1.06674313]
[1769587769118,2.92634721,3005.6,3004.9,1.06674313]
[1769587769318,0.99473628,3005.7,3004.9,1.06674313]
[1769587769618,2.92641497,3005.6,3004.9,1.06674313]
[1769587769814,0.99473628,3005.7,3004.9,1.06674313]
[1769587772722,5.536,3005.6,3004.9,1.06674313]
[1769587772918,0.99473628,3005.7,3004.9,1.06674313]
[1769587773423,0.99473628,3005.5,3004.7,5.06244914]
[1769587773610,0.99473628,3005.5,3004.7,1.06674313]
[1769587774520,0.99473628,3005.5,3004.7,5.06244914]
[1769587774728,0.99473628,3005.5,3004.7,1.06674313]
[1769587775720,0.99473628,3005.5,3004.6,5.06244914]
[1769587776218,0.99473628,3005.8,3004.7,1.06674313]
[1769587776418,2.92062515,3005.7,3004.8,1.06674313]
[1769587776618,3.91536143,3005.6,3004.8,1.06674313]
[1769587776823,0.99473628,3005.6,3004.8,1.06674313]
[1769587785130,11.15523079,3006.1,3004.8,1.46537239]
[1769587785330,0.99473628,3005.9,3004.9,1.06674313]
[1769587785532,3.91653149,3005.8,3004.9,1.06674313]
[1769587785730,2.92179521,3005.7,3004.9,1.06674313]
[1769587785934,0.99473628,3006.0,3005.1,1.06674313]
[1769587786236,2.92208838,3005.9,3005.3,1.06674313]
[1769587786430,2.92208838,3005.8,3005.3,1.06674313]
[1769587786730,0.99473628,3006.0,3005.3,1.06674313]
[1769587786928,2.92196477,3005.9,3005.3,1.06674313]
[1769587787129,2.92196477,3005.8,3005.3,1.06674313]
[1769587787331,0.99473628,3005.8,3005.1,1.06674313]
[1769587787632,0.99473628,3005.6,3004.8,1.06674313]
[1769587792442,0.99473628,3005.4,3004.8,1.06674313]
[1769587795243,0.99473628,3005.4,3004.6,4.88148228]
[1769587795744,0.99473628,3005.4,3004.7,0.88577627]
[1769587798639,0.99473628,3005.4,3004.5,0.88577627]
[1769587800340,0.91683226,3005.2,3004.3,4.88148228]
[1769587800547,0.91683226,3004.8,3004.1,4.88148228]
[1769587800845,0.91683226,3004.8,3004.1,0.88577627]
[1769587805638,0.91683226,3004.8,3003.9,0.88577627]
[1769587807052,1.08347226,3004.8,3003.7,0.88577627]
[1769587807348,1.08347226,3004.8,3003.5,0.88833733]
[1769587807548,2.90941305,3004.7,3003.5,0.88833733]
[1769587807740,0.91683226,3004.6,3003.5,0.88833733]
[1769587809144,0.91683226,3004.6,3003.0,3.99570601]
[1769587809145,0.91683226,3004.1,3003.0,3.99570601]
[1769587809448,0.91683226,3004.1,3002.0,0.88577627]
[1769587809449,0.91683226,3003.7,3002.0,0.88577627]
[1769587809649,0.91683226,3003.5,3002.0,0.88577627]
[1769587810351,0.91935046,3003.5,3002.0,0.8898729]
[1769587810544,1.08606046,3003.5,3002.0,0.8898729]
[1769587813649,1.08606046,3003.5,3002.3,1.46572796]
[1769587813845,1.08606046,3003.5,3002.4,0.88577627]
[1769587819356,0.91683226,3003.4,3002.4,0.88577627]
[1769587821357,0.91683226,3003.3,3002.4,0.88577627]
[1769587823762,5.98378944,3004.9,3002.4,0.88577627]
[1769587823763,1.08351226,3004.1,3002.5,0.88577627]
[1769587823952,1.36806183,3004.1,3002.5,0.88577627]
[1769587824154,0.91683226,3004.0,3002.5,0.88577627]
[1769587824856,0.91968561,3004.0,3002.5,0.88577627]
[1769587826765,0.00285335,3004.0,3002.6,0.8625831]
[1769587826959,0.00285335,3004.0,3002.8,0.8625831]
[1769587839870,0.00285335,3004.0,3003.0,0.8625831]
[1769587844372,0.00285335,3004.0,3003.0,4.7555831]
[1769587844575,0.00285335,3004.0,3003.1,0.8625831]
[1769587850083,0.83307075,3004.0,3003.1,0.8625831]
[1769587850382,0.8302174,3003.8,3002.7,3.893]
[1769587851084,0.9969274,3003.6,3002.2,4.99786315]
[1769587851275,0.8302174,3003.2,3002.1,3.893]
[1769587851475,0.8302174,3003.2,3002.0,0.00409663]
[1769587852276,0.8302174,3003.2,3002.0,0.86667973]
[1769587860390,6.67572796,3003.6,3002.0,0.00409663]
[1769587860391,1.02312509,3003.0,3002.0,0.00409663]
[1769587861489,0.85638509,3002.8,3002.0,0.00409663]
[1769587861685,0.85638509,3002.2,3001.2,5.83831905]
[1769587861995,0.85638509,3002.2,3001.0,5.99743579]
[1769587861996,0.85638509,3002.2,3001.0,0.8404559]
[1769587862696,0.16678,3002.3,3001.1,0.83408577]
[1769587862997,0.85638509,3003.0,3001.9,0.83408577]
[1769587863292,0.85638509,3003.8,3002.3,0.83408577]
[1769587863484,0.85638509,3003.8,3001.5,1.46572796]
[1769587863485,0.85638509,3003.8,3002.7,0.82804181]
[1769587863889,1.02307509,3003.8,3002.4,0.82804181]
[1769587864803,0.85638509,3003.6,3002.4,0.82804181]
[1769587865597,0.85638509,3003.4,3002.4,0.82804181]
[1769587866994,0.85638509,3003.4,3002.2,2.25024259]
[1769587867500,0.85638509,3003.4,3002.3,0.78508253]
[1769587867892,0.85638509,3003.2,3002.0,1.46731393]
[1769587868198,0.85638509,3003.0,3002.2,0.78508253]
[1769587870199,0.85638509,3003.0,3002.1,1.46731393]
[1769587871895,0.85638509,3003.0,3001.9,2.22424558]
[1769587872102,0.85638509,3003.0,3002.1,2.19481737]
[1769587873201,0.85638509,3003.0,3002.1,1.46731393]
[1769587873904,0.85638509,3003.0,3001.9,2.18110706]
[1769587874604,0.85638509,3003.0,3001.9,0.71379313]
[1769587875008,0.85638509,3002.8,3001.9,0.71379313]
[1769587875409,0.85638509,3002.4,3001.7,3.893]
[1769587878510,0.85638509,3002.4,3001.7,4.5260537]
[1769587878703,0.85638509,3002.4,3001.7,3.893]
[1769587878904,0.85638509,3002.6,3001.8,0.6330537]
[1769587879611,1.02311509,3003.2,3002.0,0.62131047]
[1769587879913,0.85638509,3003.0,3002.0,0.62131047]
[1769587880102,0.85638509,3002.8,3001.9,1.46731393]
[1769587880308,0.85638509,3002.8,3001.7,2.0886244]
[1769587880514,0.85638509,3002.8,3001.8,0.60881793]
[1769587882009,7.3222884,3003.4,3001.8,0.60881793]
[1769587882010,0.85638509,3003.4,3002.6,1.46731393]
[1769587882204,2.96748164,3003.3,3002.6,1.46731393]
[1769587882507,0.85638509,3003.4,3002.5,0.58509756]
[1769587883305,0.85638509,3003.4,3002.2,2.05241149]
[1769587883505,0.85638509,3003.4,3002.3,0.57483436]
[1769587885116,0.85638509,3003.4,3002.4,2.0393148]
[1769587885301,0.61052084,3003.7,3002.9,0.56017396]
[1769587885501,2.96750886,3003.6,3002.9,0.56017396]
[1769587885706,0.61052084,3003.7,3002.9,0.56017396]
[1769587885901,3.57802705,3003.6,3002.8,1.46731393]
[1769587886112,0.61052084,3003.6,3002.8,1.46731393]
[1769587886313,0.61052084,3003.6,3002.6,2.01575732]
[1769587886513,0.61052084,3003.6,3002.6,1.46731393]
[1769587886811,0.61052084,3003.6,3002.0,8.89086315]
[1769587886812,0.61052084,3003.6,3002.1,0.53684755]
[1769587887004,0.61052084,3003.4,3002.4,0.53684755]
[1769587888503,0.61052084,3003.4,3002.1,1.98504926]
[1769587888807,0.61052084,3003.4,3002.2,0.51773533]
[1769587889314,0.61052084,3003.4,3002.3,1.46731393]
[1769587889512,0.61052084,3003.4,3002.3,1.97092346]
[1769587891614,0.61052084,3003.4,3002.4,0.4822701]
[1769587894011,0.61052084,3003.4,3001.9,4.99786315]
[1769587894218,0.61052084,3002.7,3001.8,4.34960419]
[1769587894418,0.61052084,3002.7,3001.8,0.45660419]
[1769587899423,0.61052084,3002.7,3001.7,5.36031393]
[1769587901121,0.61052084,3002.7,3001.7,5.72909001]
[1769587901313,0.61052084,3002.7,3001.9,1.46731393]
[1769587901513,0.61052084,3002.7,3001.9,1.82644877]
[1769587902022,0.61052084,3002.7,3002.0,0.35913484]
[1769587902214,0.61052084,3003.1,3002.5,1.46731393]
[1769587902520,3.9872884,3003.9,3003.0,1.46731393]
[1769587902721,2.96725734,3003.8,3003.0,0.62848621]
[1769587902920,2.96725734,3003.7,3002.7,0.62848621]
[1769587903220,3.13395734,3003.7,3002.4,2.09580014]
[1769587903419,1.46731393,3003.3,3002.1,0.62848621]
[1769587903921,0.1667,3003.6,3002.5,0.62848621]
[1769587904117,2.96693153,3003.5,3002.5,0.62848621]
[1769587904313,0.61052084,3003.3,3002.5,0.62848621]
[1769587906223,0.61052084,3003.3,3002.2,0.62848621]
[1769587906424,0.61052084,3003.3,3002.0,0.62848621]